[Event "*** Titled Tuesday Blitz"]
[Site "Chess.com"]
[Date "2020.04.28"]
[Round "9"]
[White "Shoytan"]
[Black "VolodymyrMolyboha"]
[Result "1-0"]
[WhiteElo "2603"]
[BlackElo "2441"]
[TimeControl "180+1"]
[EndTime "11:43:12 PDT"]
[Termination "Shoytan won by checkmate"]

1. e4 {[%clk 0:03:00.9]} 1... g6 {[%clk 0:02:59.3]} 2. d4 {[%clk 0:03:00.2]}
2... Bg7 {[%clk 0:02:59.5]} 3. Nc3 {[%clk 0:03:00.7]} 3... d6 {[%clk 0:02:56.7]}
4. Nf3 {[%clk 0:02:59.8]} 4... Nf6 {[%clk 0:02:55.8]} 5. Bc4 {[%clk 0:02:59.3]}
5... O-O {[%clk 0:02:55.8]} 6. Qe2 {[%clk 0:02:59.7]} 6... c6 {[%clk 0:02:55.7]}
7. e5 {[%clk 0:02:58.7]} 7... dxe5 {[%clk 0:02:55.3]} 8. dxe5 {[%clk 0:02:59.6]}
8... Nd5 {[%clk 0:02:55.4]} 9. Bd2 {[%clk 0:02:51]} 9... Bg4 {[%clk 0:02:51.9]}
10. O-O-O {[%clk 0:02:49.4]} 10... Nxc3 {[%clk 0:02:41.5]} 11. Bxc3 {[%clk
0:02:47.8]} 11... Qc7 {[%clk 0:02:39.7]} 12. h3 {[%clk 0:02:38]} 12... Bxf3
{[%clk 0:02:39.2]} 13. gxf3 {[%clk 0:02:38.9]} 13... e6 {[%clk 0:02:34.5]} 14.
h4 {[%clk 0:02:34.8]} 14... Nd7 {[%clk 0:02:33]} 15. f4 {[%clk 0:02:34.5]} 15...
a5 {[%clk 0:02:27.8]} 16. h5 {[%clk 0:02:26.9]} 16... b5 {[%clk 0:02:27.1]} 17.
Bd3 {[%clk 0:02:24.9]} 17... Nc5 {[%clk 0:02:23.7]} 18. Qg4 {[%clk 0:02:20.6]}
18... Nxd3+ {[%clk 0:02:06.2]} 19. Rxd3 {[%clk 0:02:19.5]} 19... Rad8 {[%clk
0:02:05.2]} 20. hxg6 {[%clk 0:02:14.6]} 20... hxg6 {[%clk 0:01:09.1]} 21. Rdh3
{[%clk 0:02:12.5]} 21... b4 {[%clk 0:00:54]} 22. Qh4 {[%clk 0:02:09.5]} 22...
Rfe8 {[%clk 0:00:50.2]} 23. Qh8+ {[%clk 0:02:04.2]} 23... Bxh8 {[%clk
0:00:49.5]} 24. Rxh8+ {[%clk 0:02:05.1]} 24... Kg7 {[%clk 0:00:49.8]} 25. R1h7#
{[%clk 0:02:05.6]} 1-0

[Event "*** Titled Tuesday Blitz"]
[Site "Chess.com"]
[Date "2020.04.28"]
[Round "9"]
[White "shyam"]
[Black "Tesla37"]
[Result "1-0"]
[WhiteElo "2712"]
[BlackElo "2861"]
[TimeControl "180+1"]
[EndTime "11:43:15 PDT"]
[Termination "shyam won by resignation"]

1. e4 {[%clk 0:03:00.9]} 1... c5 {[%clk 0:02:59]} 2. Nf3 {[%clk 0:03:01]} 2...
e6 {[%clk 0:02:59.1]} 3. c3 {[%clk 0:02:57.7]} 3... Nf6 {[%clk 0:02:58.1]} 4. e5
{[%clk 0:02:58.1]} 4... Nd5 {[%clk 0:02:58.2]} 5. Bc4 {[%clk 0:02:59]} 5... d6
{[%clk 0:02:57]} 6. d4 {[%clk 0:02:58]} 6... cxd4 {[%clk 0:02:56.4]} 7. cxd4
{[%clk 0:02:58.9]} 7... Nc6 {[%clk 0:02:54.7]} 8. O-O {[%clk 0:02:59]} 8... Be7
{[%clk 0:02:53.7]} 9. Bd2 {[%clk 0:02:58.9]} 9... O-O {[%clk 0:02:53.4]} 10. Nc3
{[%clk 0:02:59.4]} 10... Nxc3 {[%clk 0:02:43.5]} 11. Bxc3 {[%clk 0:03:00.3]}
11... d5 {[%clk 0:02:37.7]} 12. Bd3 {[%clk 0:02:58.7]} 12... Bd7 {[%clk
0:02:38.3]} 13. Rc1 {[%clk 0:02:53.7]} 13... Qb6 {[%clk 0:02:36.6]} 14. a3
{[%clk 0:02:52.9]} 14... Rac8 {[%clk 0:02:34.2]} 15. h4 {[%clk 0:02:48.6]} 15...
Na5 {[%clk 0:02:19.8]} 16. Qe2 {[%clk 0:02:11.4]} 16... Nb3 {[%clk 0:02:17.1]}
17. Rcd1 {[%clk 0:02:07.7]} 17... a6 {[%clk 0:02:15.5]} 18. h5 {[%clk
0:01:58.3]} 18... Bb5 {[%clk 0:02:12.6]} 19. h6 {[%clk 0:01:55.6]} 19... g6
{[%clk 0:02:11]} 20. Nh2 {[%clk 0:01:56.1]} 20... Bxd3 {[%clk 0:02:00.9]} 21.
Rxd3 {[%clk 0:01:57]} 21... Qb5 {[%clk 0:02:00.8]} 22. Ng4 {[%clk 0:01:53.6]}
22... Kh8 {[%clk 0:01:45.1]} 23. Qf3 {[%clk 0:01:52.3]} 23... Rc7 {[%clk
0:01:37.6]} 24. Bb4 {[%clk 0:01:51.7]} 24... f5 {[%clk 0:01:28.4]} 25. exf6
{[%clk 0:01:45.5]} 25... Bxb4 {[%clk 0:01:27.4]} 26. Rxb3 {[%clk 0:01:45.3]}
26... Qxf1+ {[%clk 0:01:23.5]} 27. Kxf1 {[%clk 0:01:44.4]} 27... Rc1+ {[%clk
0:01:24]} 28. Ke2 {[%clk 0:01:45]} 28... Re1+ {[%clk 0:01:22.8]} 29. Kd3 {[%clk
0:01:45.4]} 1-0

[Event "*** Titled Tuesday Blitz"]
[Site "Chess.com"]
[Date "2020.04.28"]
[Round "9"]
[White "Saloni1299"]
[Black "Feegus"]
[Result "0-1"]
[WhiteElo "2333"]
[BlackElo "2480"]
[TimeControl "180+1"]
[EndTime "11:43:17 PDT"]
[Termination "Feegus won by resignation"]

1. e4 {[%clk 0:03:00.9]} 1... e6 {[%clk 0:02:59.5]} 2. d4 {[%clk 0:03:00.7]}
2... d5 {[%clk 0:02:59.3]} 3. Nc3 {[%clk 0:03:01.3]} 3... Nf6 {[%clk 0:02:58.5]}
4. e5 {[%clk 0:03:01]} 4... Nfd7 {[%clk 0:02:59.2]} 5. f4 {[%clk 0:03:01.6]}
5... c5 {[%clk 0:02:59.8]} 6. Nf3 {[%clk 0:03:02.2]} 6... Nc6 {[%clk 0:03:00.7]}
7. Be3 {[%clk 0:03:02.4]} 7... cxd4 {[%clk 0:03:01.6]} 8. Nxd4 {[%clk 0:03:02]}
8... Bc5 {[%clk 0:03:02.2]} 9. Qd2 {[%clk 0:03:02.1]} 9... O-O {[%clk
0:03:00.3]} 10. O-O-O {[%clk 0:03:01.5]} 10... a6 {[%clk 0:03:00.6]} 11. Kb1
{[%clk 0:02:54.5]} 11... Nxd4 {[%clk 0:02:59.4]} 12. Bxd4 {[%clk 0:02:54.3]}
12... b5 {[%clk 0:03:00.3]} 13. g4 {[%clk 0:02:51.7]} 13... b4 {[%clk
0:02:58.3]} 14. Na4 {[%clk 0:02:51.9]} 14... Bxd4 {[%clk 0:02:57.6]} 15. Qxd4
{[%clk 0:02:52.5]} 15... a5 {[%clk 0:02:58.5]} 16. Bd3 {[%clk 0:02:48.9]} 16...
Ba6 {[%clk 0:02:52.3]} 17. f5 {[%clk 0:02:49.1]} 17... Qc7 {[%clk 0:02:40.3]}
18. Rhf1 {[%clk 0:02:36.3]} 18... Qxe5 {[%clk 0:02:38]} 19. Qxe5 {[%clk
0:02:27.2]} 19... Nxe5 {[%clk 0:02:38.9]} 20. Bxa6 {[%clk 0:02:26.7]} 20... Rxa6
{[%clk 0:02:37.5]} 21. fxe6 {[%clk 0:02:26.5]} 21... fxe6 {[%clk 0:02:37.1]} 22.
Rxf8+ {[%clk 0:02:20]} 22... Kxf8 {[%clk 0:02:38]} 23. Re1 {[%clk 0:02:17.9]}
23... Nxg4 {[%clk 0:02:28.2]} 24. Nc5 {[%clk 0:02:18]} 24... Rd6 {[%clk
0:02:25.2]} 25. Nxe6+ {[%clk 0:02:17.7]} 25... Kf7 {[%clk 0:02:23.5]} 26. Ng5+
{[%clk 0:02:08.7]} 26... Kg6 {[%clk 0:02:23.4]} 27. Nf3 {[%clk 0:02:08.9]} 27...
Rf6 {[%clk 0:02:21.4]} 28. Rg1 {[%clk 0:02:02.1]} 28... Rxf3 {[%clk 0:02:21.3]}
29. Rxg4+ {[%clk 0:02:01.7]} 29... Kf6 {[%clk 0:02:20.3]} 30. Rg1 {[%clk
0:01:59.8]} 30... g5 {[%clk 0:02:15.2]} 31. b3 {[%clk 0:01:57.3]} 31... h5
{[%clk 0:02:14.7]} 32. Rg2 {[%clk 0:01:56.6]} 32... g4 {[%clk 0:02:14.6]} 33. a4
{[%clk 0:01:55.8]} 33... Kf5 {[%clk 0:02:14.3]} 34. Kc1 {[%clk 0:01:56]} 34...
Kf4 {[%clk 0:02:14.3]} 35. Kd2 {[%clk 0:01:55.9]} 35... h4 {[%clk 0:02:14.2]}
36. Ke2 {[%clk 0:01:53.7]} 36... g3 {[%clk 0:02:11.1]} 37. hxg3+ {[%clk
0:01:50.9]} 37... hxg3 {[%clk 0:02:11.5]} 38. Rg1 {[%clk 0:01:49.5]} 38... Rc3
{[%clk 0:02:11.3]} 39. Kd2 {[%clk 0:01:48.6]} 39... Kf3 {[%clk 0:02:11.3]} 40.
Rf1+ {[%clk 0:01:48.6]} 40... Kg2 {[%clk 0:02:11.5]} 41. Rf8 {[%clk 0:01:46.8]}
41... Kg1 {[%clk 0:02:10.3]} 42. Rf5 {[%clk 0:01:42.8]} 42... g2 {[%clk
0:02:10.4]} 43. Rxd5 {[%clk 0:01:42.7]} 43... Kh2 {[%clk 0:02:10.7]} 44. Rh5+
{[%clk 0:01:40.5]} 44... Rh3 {[%clk 0:02:11.2]} 45. Rg5 {[%clk 0:01:40.6]} 45...
g1=Q {[%clk 0:02:09.3]} 0-1

[Event "*** Titled Tuesday Blitz"]
[Site "Chess.com"]
[Date "2020.04.28"]
[Round "9"]
[White "Tall-guy"]
[Black "realmadridtv"]
[Result "0-1"]
[WhiteElo "2124"]
[BlackElo "2311"]
[TimeControl "180+1"]
[EndTime "11:43:18 PDT"]
[Termination "realmadridtv won by resignation"]

1. e4 {[%clk 0:03:00.9]} 1... e5 {[%clk 0:02:57.9]} 2. Nf3 {[%clk 0:02:59.3]}
2... Nc6 {[%clk 0:02:50.8]} 3. Bc4 {[%clk 0:02:59.4]} 3... Bc5 {[%clk
0:02:47.7]} 4. c3 {[%clk 0:02:58.7]} 4... Nf6 {[%clk 0:02:47.7]} 5. d4 {[%clk
0:02:58.6]} 5... exd4 {[%clk 0:02:48.1]} 6. e5 {[%clk 0:02:59.5]} 6... d5 {[%clk
0:02:47.7]} 7. Bb5 {[%clk 0:02:59.5]} 7... Ne4 {[%clk 0:02:47.7]} 8. cxd4 {[%clk
0:02:59.6]} 8... Bb6 {[%clk 0:02:48]} 9. Nc3 {[%clk 0:02:58.2]} 9... O-O {[%clk
0:02:40.8]} 10. Be3 {[%clk 0:02:56.1]} 10... Bg4 {[%clk 0:02:36.1]} 11. h3
{[%clk 0:02:55]} 11... Bxf3 {[%clk 0:02:35]} 12. gxf3 {[%clk 0:02:52.1]} 12...
Ng5 {[%clk 0:02:23.3]} 13. Rg1 {[%clk 0:02:39]} 13... Ne6 {[%clk 0:02:22.1]} 14.
Bh6 {[%clk 0:02:30.1]} 14... Ncxd4 {[%clk 0:02:16.4]} 15. Qd3 {[%clk 0:02:22]}
15... Qh4 {[%clk 0:02:09.4]} 16. Be3 {[%clk 0:01:10.8]} 16... Nxf3+ {[%clk
0:02:07.7]} 17. Ke2 {[%clk 0:01:11.3]} 17... Nxg1+ {[%clk 0:02:06.8]} 18. Rxg1
{[%clk 0:01:12.2]} 18... d4 {[%clk 0:01:59.2]} 19. Ne4 {[%clk 0:01:00.6]} 19...
dxe3 {[%clk 0:01:45.1]} 20. Rg4 {[%clk 0:00:59.8]} 20... Qxg4+ {[%clk
0:01:42.7]} 0-1

[Event "*** Titled Tuesday Blitz"]
[Site "Chess.com"]
[Date "2020.04.28"]
[Round "9"]
[White "Justinz"]
[Black "Igor_Lysyj"]
[Result "0-1"]
[WhiteElo "2274"]
[BlackElo "2771"]
[TimeControl "180+1"]
[EndTime "11:43:21 PDT"]
[Termination "Igor_Lysyj won by resignation"]

1. e4 {[%clk 0:03:00.9]} 1... e5 {[%clk 0:02:58.9]} 2. Nf3 {[%clk 0:03:00.8]}
2... Nc6 {[%clk 0:02:58.2]} 3. Nc3 {[%clk 0:03:01.2]} 3... Nf6 {[%clk
0:02:57.5]} 4. Bb5 {[%clk 0:03:01.5]} 4... Bc5 {[%clk 0:02:55.7]} 5. Nxe5 {[%clk
0:02:59.9]} 5... Nxe5 {[%clk 0:02:52.8]} 6. d4 {[%clk 0:02:59.4]} 6... Bd6
{[%clk 0:02:41.8]} 7. f4 {[%clk 0:02:58.4]} 7... Nc6 {[%clk 0:02:38]} 8. e5
{[%clk 0:02:57.9]} 8... Bb4 {[%clk 0:02:38.1]} 9. exf6 {[%clk 0:02:57.1]} 9...
Qxf6 {[%clk 0:02:36.9]} 10. a3 {[%clk 0:02:51.3]} 10... Bxc3+ {[%clk 0:02:24.4]}
11. bxc3 {[%clk 0:02:50.7]} 11... d5 {[%clk 0:02:24.4]} 12. O-O {[%clk
0:02:43.2]} 12... Bf5 {[%clk 0:02:19.1]} 13. Re1+ {[%clk 0:02:35.3]} 13... Be4
{[%clk 0:02:18.1]} 14. c4 {[%clk 0:02:34.9]} 14... O-O {[%clk 0:02:12.5]} 15.
cxd5 {[%clk 0:02:34.8]} 15... Bxd5 {[%clk 0:02:07.6]} 16. c4 {[%clk 0:01:59.9]}
16... Qxd4+ {[%clk 0:02:01.5]} 17. Qxd4 {[%clk 0:01:56.5]} 17... Nxd4 {[%clk
0:02:00.6]} 18. cxd5 {[%clk 0:01:56.4]} 18... Nxb5 {[%clk 0:01:59.9]} 19. a4
{[%clk 0:01:53.6]} 19... Nc3 {[%clk 0:01:55.9]} 20. Ba3 {[%clk 0:01:50.9]} 20...
Rfe8 {[%clk 0:01:54.1]} 21. d6 {[%clk 0:01:50.6]} 21... Rxe1+ {[%clk 0:01:45.5]}
22. Rxe1 {[%clk 0:01:51.5]} 22... cxd6 {[%clk 0:01:45.6]} 23. Re7 {[%clk
0:01:50.7]} 23... b6 {[%clk 0:01:42.6]} 24. a5 {[%clk 0:01:50.8]} 24... bxa5
{[%clk 0:01:38]} 25. Bxd6 {[%clk 0:01:49.1]} 25... Nb5 {[%clk 0:01:37.6]} 26.
Be5 {[%clk 0:01:46.1]} 26... f6 {[%clk 0:01:34.1]} 27. Bb2 {[%clk 0:01:43.4]}
27... a4 {[%clk 0:01:34.3]} 28. Rb7 {[%clk 0:01:42.1]} 28... a6 {[%clk
0:01:33.7]} 29. g4 {[%clk 0:01:39.7]} 29... a3 {[%clk 0:01:32.4]} 30. Bc1 {[%clk
0:01:36.3]} 30... Rc8 {[%clk 0:01:25.6]} 0-1

[Event "*** Titled Tuesday Blitz"]
[Site "Chess.com"]
[Date "2020.04.28"]
[Round "9"]
[White "Eliwood44"]
[Black "TudorAnton"]
[Result "0-1"]
[WhiteElo "2337"]
[BlackElo "2525"]
[TimeControl "180+1"]
[EndTime "11:43:21 PDT"]
[Termination "TudorAnton won by checkmate"]

1. d4 {[%clk 0:03:00.9]} 1... Nf6 {[%clk 0:02:58.5]} 2. Nf3 {[%clk 0:03:00.3]}
2... d5 {[%clk 0:02:56.5]} 3. c4 {[%clk 0:02:59.3]} 3... e6 {[%clk 0:02:45.8]}
4. g3 {[%clk 0:02:58.9]} 4... Bb4+ {[%clk 0:02:45.1]} 5. Bd2 {[%clk 0:02:57.4]}
5... Be7 {[%clk 0:02:45.5]} 6. Bg2 {[%clk 0:02:57.6]} 6... O-O {[%clk
0:02:44.5]} 7. O-O {[%clk 0:02:57.3]} 7... c6 {[%clk 0:02:40.7]} 8. Qc2 {[%clk
0:02:56.4]} 8... b6 {[%clk 0:02:35.2]} 9. Nc3 {[%clk 0:02:55.9]} 9... Ba6 {[%clk
0:02:06.6]} 10. Ne5 {[%clk 0:02:53.4]} 10... Bxc4 {[%clk 0:01:59.6]} 11. Nxc4
{[%clk 0:02:53]} 11... dxc4 {[%clk 0:02:00.5]} 12. Rad1 {[%clk 0:02:38.3]} 12...
b5 {[%clk 0:01:56.2]} 13. Nxb5 {[%clk 0:02:36.9]} 13... cxb5 {[%clk 0:01:54.7]}
14. Bxa8 {[%clk 0:02:36.4]} 14... Qxd4 {[%clk 0:01:53.9]} 15. Be3 {[%clk
0:02:32.2]} 15... Qe5 {[%clk 0:01:51.7]} 16. Bxa7 {[%clk 0:02:25.3]} 16... Nbd7
{[%clk 0:01:40.6]} 17. Bg2 {[%clk 0:02:22.9]} 17... h5 {[%clk 0:01:36.9]} 18.
Bd4 {[%clk 0:02:17.9]} 18... Qg5 {[%clk 0:01:36.1]} 19. Bc6 {[%clk 0:02:08.2]}
19... h4 {[%clk 0:01:33.6]} 20. Be3 {[%clk 0:02:07.2]} 20... Qh5 {[%clk
0:01:23.1]} 21. Bxd7 {[%clk 0:02:05.6]} 21... hxg3 {[%clk 0:01:23.3]} 22. hxg3
{[%clk 0:02:02.3]} 22... Ng4 {[%clk 0:01:23.5]} 23. Rfe1 {[%clk 0:01:24.7]}
23... Qh2+ {[%clk 0:01:20.2]} 24. Kf1 {[%clk 0:01:24.9]} 24... Qh1# {[%clk
0:01:20.8]} 0-1

[Event "*** Titled Tuesday Blitz"]
[Site "Chess.com"]
[Date "2020.04.28"]
[Round "9"]
[White "suyu28"]
[Black "maziarbagheri"]
[Result "1-0"]
[WhiteElo "2598"]
[BlackElo "2422"]
[TimeControl "180+1"]
[EndTime "11:43:33 PDT"]
[Termination "suyu28 won by resignation"]

1. d4 {[%clk 0:02:59.6]} 1... d5 {[%clk 0:02:53.7]} 2. c4 {[%clk 0:02:59.8]}
2... c6 {[%clk 0:02:53.2]} 3. Nf3 {[%clk 0:02:59.8]} 3... Nf6 {[%clk 0:02:50.9]}
4. e3 {[%clk 0:03:00.1]} 4... e6 {[%clk 0:02:51.1]} 5. b3 {[%clk 0:02:59.9]}
5... Nbd7 {[%clk 0:02:51.7]} 6. Bb2 {[%clk 0:02:59.6]} 6... Bd6 {[%clk
0:02:52.3]} 7. Bd3 {[%clk 0:02:59.8]} 7... O-O {[%clk 0:02:52.9]} 8. Nbd2 {[%clk
0:03:00]} 8... Re8 {[%clk 0:02:53.3]} 9. Ne5 {[%clk 0:02:59.4]} 9... Qe7 {[%clk
0:02:47.2]} 10. a3 {[%clk 0:02:52.8]} 10... c5 {[%clk 0:02:40.5]} 11. O-O {[%clk
0:02:51.5]} 11... b6 {[%clk 0:02:33.9]} 12. Qc2 {[%clk 0:02:51.2]} 12... Bb7
{[%clk 0:02:31.9]} 13. Nxd7 {[%clk 0:02:51]} 13... Qxd7 {[%clk 0:02:29.4]} 14.
dxc5 {[%clk 0:02:51]} 14... Bxc5 {[%clk 0:02:30]} 15. Bxf6 {[%clk 0:02:51]}
15... gxf6 {[%clk 0:02:30.7]} 16. Bxh7+ {[%clk 0:02:51.2]} 16... Kg7 {[%clk
0:02:31.3]} 17. cxd5 {[%clk 0:02:50.3]} 17... Bxd5 {[%clk 0:02:26]} 18. Be4
{[%clk 0:02:49.7]} 18... Rac8 {[%clk 0:02:24.3]} 19. Qd3 {[%clk 0:02:37.2]}
19... Rh8 {[%clk 0:02:23]} 20. Bxd5 {[%clk 0:02:35]} 20... exd5 {[%clk
0:02:22.9]} 21. Nf3 {[%clk 0:02:32.2]} 21... Bd6 {[%clk 0:02:22.4]} 22. Rad1
{[%clk 0:02:30.4]} 22... Bxa3 {[%clk 0:02:14.1]} 23. Qxd5 {[%clk 0:02:24.6]}
23... Qxd5 {[%clk 0:02:06.3]} 24. Rxd5 {[%clk 0:02:25.4]} 24... Rhd8 {[%clk
0:02:05.3]} 25. Rxd8 {[%clk 0:02:22]} 25... Rxd8 {[%clk 0:02:06.2]} 26. Ra1
{[%clk 0:02:13.4]} 26... a5 {[%clk 0:02:06.6]} 27. Kf1 {[%clk 0:02:11.8]} 27...
Bc5 {[%clk 0:02:05.3]} 28. Ke2 {[%clk 0:02:11.8]} 28... f5 {[%clk 0:02:02.1]}
29. Rd1 {[%clk 0:02:07.6]} 29... Ra8 {[%clk 0:01:59.3]} 30. Rd5 {[%clk
0:02:05.4]} 30... Kf6 {[%clk 0:01:50.2]} 31. Nh4 {[%clk 0:02:05.3]} 31... Ke6
{[%clk 0:01:49.6]} 32. Rxf5 {[%clk 0:02:04.5]} 32... Rh8 {[%clk 0:01:49.6]} 33.
Rf4 {[%clk 0:02:04.6]} 33... b5 {[%clk 0:01:49.4]} 34. Nf3 {[%clk 0:02:00.4]}
34... Bd6 {[%clk 0:01:48.1]} 35. Ng5+ {[%clk 0:01:56]} 35... Kd5 {[%clk
0:01:40.7]} 36. Rd4+ {[%clk 0:01:54.4]} 36... Kc5 {[%clk 0:01:37.6]} 37. Ne4+
{[%clk 0:01:48.8]} 1-0

[Event "*** Titled Tuesday Blitz"]
[Site "Chess.com"]
[Date "2020.04.28"]
[Round "9"]
[White "SHIVACalypso"]
[Black "2346PL"]
[Result "1-0"]
[WhiteElo "2292"]
[BlackElo "2453"]
[TimeControl "180+1"]
[EndTime "11:43:39 PDT"]
[Termination "SHIVACalypso won by resignation"]

1. Nf3 {[%clk 0:03:00.9]} 1... c5 {[%clk 0:02:59.6]} 2. c4 {[%clk 0:03:00.8]}
2... Nf6 {[%clk 0:02:58.9]} 3. g3 {[%clk 0:03:01]} 3... Nc6 {[%clk 0:02:57.3]}
4. Bg2 {[%clk 0:03:01]} 4... g6 {[%clk 0:02:57.1]} 5. O-O {[%clk 0:03:01]} 5...
Bg7 {[%clk 0:02:57.4]} 6. Nc3 {[%clk 0:03:00.6]} 6... O-O {[%clk 0:02:57.1]} 7.
d3 {[%clk 0:03:00]} 7... d6 {[%clk 0:02:56.6]} 8. Rb1 {[%clk 0:02:59.8]} 8... e5
{[%clk 0:02:54.8]} 9. a3 {[%clk 0:02:59.7]} 9... a5 {[%clk 0:02:54.4]} 10. Ne1
{[%clk 0:02:59.7]} 10... Nh5 {[%clk 0:02:51.4]} 11. Nc2 {[%clk 0:02:58.5]} 11...
f5 {[%clk 0:02:51.1]} 12. b4 {[%clk 0:02:56]} 12... axb4 {[%clk 0:02:49.9]} 13.
axb4 {[%clk 0:02:56.9]} 13... e4 {[%clk 0:02:37.5]} 14. Nd5 {[%clk 0:02:54.3]}
14... Nd4 {[%clk 0:02:24.5]} 15. Bb2 {[%clk 0:02:27.7]} 15... exd3 {[%clk
0:02:18.4]} 16. Qxd3 {[%clk 0:02:17.7]} 16... Nxc2 {[%clk 0:02:09.8]} 17. Qxc2
{[%clk 0:02:18.6]} 17... f4 {[%clk 0:02:01]} 18. Bxg7 {[%clk 0:02:10.6]} 18...
Nxg7 {[%clk 0:02:01.9]} 19. Qb2 {[%clk 0:02:02.1]} 19... fxg3 {[%clk 0:01:51.8]}
20. fxg3 {[%clk 0:01:59.2]} 20... Bf5 {[%clk 0:01:47.4]} 21. e4 {[%clk
0:01:54.4]} 21... Be6 {[%clk 0:01:47.6]} 22. bxc5 {[%clk 0:01:44.8]} 22... dxc5
{[%clk 0:01:43.9]} 23. Qxb7 {[%clk 0:01:38]} 23... Qd6 {[%clk 0:01:32.3]} 24.
Rb6 {[%clk 0:01:04.6]} 24... Qxd5 {[%clk 0:01:26.4]} 25. exd5 {[%clk 0:01:02.1]}
1-0

[Event "*** Titled Tuesday Blitz"]
[Site "Chess.com"]
[Date "2020.04.28"]
[Round "9"]
[White "Cocaino74"]
[Black "CMS13"]
[Result "1/2-1/2"]
[WhiteElo "2327"]
[BlackElo "2165"]
[TimeControl "180+1"]
[EndTime "11:43:40 PDT"]
[Termination "Game drawn by agreement"]

1. e4 {[%clk 0:03:00.9]} 1... e5 {[%clk 0:02:59.6]} 2. Nf3 {[%clk 0:02:59.3]}
2... Nc6 {[%clk 0:02:59.9]} 3. Bc4 {[%clk 0:02:59.9]} 3... Nf6 {[%clk
0:02:59.7]} 4. Ng5 {[%clk 0:02:59.4]} 4... d5 {[%clk 0:02:58.9]} 5. exd5 {[%clk
0:03:00.3]} 5... Na5 {[%clk 0:02:59.2]} 6. Bb5+ {[%clk 0:03:00.8]} 6... c6
{[%clk 0:02:59.7]} 7. dxc6 {[%clk 0:03:01.7]} 7... bxc6 {[%clk 0:03:00.1]} 8.
Bd3 {[%clk 0:03:02.3]} 8... h6 {[%clk 0:02:59.4]} 9. Ne4 {[%clk 0:02:59.9]} 9...
Nd5 {[%clk 0:02:59.4]} 10. Ng3 {[%clk 0:02:53.1]} 10... Bd6 {[%clk 0:02:54.5]}
11. O-O {[%clk 0:02:45]} 11... O-O {[%clk 0:02:53.7]} 12. Nc3 {[%clk 0:02:33.9]}
12... f5 {[%clk 0:02:52]} 13. Nxd5 {[%clk 0:02:12.3]} 13... cxd5 {[%clk
0:02:50.8]} 14. Be2 {[%clk 0:02:08.2]} 14... f4 {[%clk 0:02:48.1]} 15. Nh5
{[%clk 0:02:07.5]} 15... g6 {[%clk 0:02:46.9]} 16. d4 {[%clk 0:02:04.2]} 16...
gxh5 {[%clk 0:02:45.7]} 17. dxe5 {[%clk 0:02:00.1]} 17... Bxe5 {[%clk
0:02:45.5]} 18. Bxh5 {[%clk 0:01:55.3]} 18... Kh8 {[%clk 0:02:41.4]} 19. Re1
{[%clk 0:01:54.5]} 19... Nc6 {[%clk 0:02:27.1]} 20. Bf3 {[%clk 0:01:36.3]} 20...
Be6 {[%clk 0:02:17.6]} 21. c4 {[%clk 0:01:36.1]} 1/2-1/2

[Event "*** Titled Tuesday Blitz"]
[Site "Chess.com"]
[Date "2020.04.28"]
[Round "9"]
[White "Rodalquilar"]
[Black "tigra"]
[Result "1-0"]
[WhiteElo "2633"]
[BlackElo "2762"]
[TimeControl "180+1"]
[EndTime "11:43:41 PDT"]
[Termination "Rodalquilar won by resignation"]

1. d4 {[%clk 0:02:23.9]} 1... Nf6 {[%clk 0:02:59.3]} 2. c4 {[%clk 0:02:23.5]}
2... g6 {[%clk 0:02:59.8]} 3. Nc3 {[%clk 0:02:24]} 3... d5 {[%clk 0:02:58.2]} 4.
cxd5 {[%clk 0:02:24.2]} 4... Nxd5 {[%clk 0:02:59.1]} 5. Bd2 {[%clk 0:02:24.8]}
5... Bg7 {[%clk 0:02:52.5]} 6. e4 {[%clk 0:02:24]} 6... Nxc3 {[%clk 0:02:53.1]}
7. Bxc3 {[%clk 0:02:24.9]} 7... Nd7 {[%clk 0:02:53.1]} 8. Qd2 {[%clk 0:02:25]}
8... O-O {[%clk 0:02:46.9]} 9. h4 {[%clk 0:02:23.9]} 9... c5 {[%clk 0:02:43.1]}
10. d5 {[%clk 0:02:24]} 10... Nf6 {[%clk 0:02:32.9]} 11. f3 {[%clk 0:02:14.6]}
11... e5 {[%clk 0:02:21.3]} 12. g4 {[%clk 0:02:07.8]} 12... Ne8 {[%clk
0:02:17.9]} 13. h5 {[%clk 0:02:05.8]} 13... Nd6 {[%clk 0:02:17]} 14. hxg6 {[%clk
0:02:05.2]} 14... fxg6 {[%clk 0:02:16.2]} 15. Qh2 {[%clk 0:02:03.4]} 15... h6
{[%clk 0:02:04.3]} 16. Bxe5 {[%clk 0:02:01.3]} 16... Qa5+ {[%clk 0:02:02.6]} 17.
Kd1 {[%clk 0:02:01.7]} 17... Nxe4 {[%clk 0:01:41.7]} 18. Bxg7 {[%clk 0:01:59.8]}
18... Kxg7 {[%clk 0:01:24.3]} 19. Qxh6+ {[%clk 0:01:57.6]} 19... Kf7 {[%clk
0:01:25]} 20. fxe4 {[%clk 0:01:55]} 20... Qa4+ {[%clk 0:01:22]} 21. Kc1 {[%clk
0:01:14.6]} 21... Qxe4 {[%clk 0:01:22.6]} 22. Ne2 {[%clk 0:01:14.8]} 22... Bxg4
{[%clk 0:01:21.2]} 23. Qf4+ {[%clk 0:01:09.9]} 23... Qxf4+ {[%clk 0:01:15.3]}
24. Nxf4 {[%clk 0:01:10.8]} 24... g5 {[%clk 0:01:15.6]} 1-0

[Event "*** Titled Tuesday Blitz"]
[Site "Chess.com"]
[Date "2020.04.28"]
[Round "9"]
[White "murtas73"]
[Black "Aureliano-Buendia"]
[Result "1-0"]
[WhiteElo "2607"]
[BlackElo "2443"]
[TimeControl "180+1"]
[EndTime "11:43:42 PDT"]
[Termination "murtas73 won by resignation"]

1. d4 {[%clk 0:03:00.9]} 1... d5 {[%clk 0:02:58.2]} 2. c4 {[%clk 0:03:00.4]}
2... c6 {[%clk 0:02:56.3]} 3. Nc3 {[%clk 0:03:00.9]} 3... Nf6 {[%clk 0:02:55.8]}
4. e3 {[%clk 0:03:00.8]} 4... a6 {[%clk 0:02:53.4]} 5. Nf3 {[%clk 0:03:00.7]}
5... b5 {[%clk 0:02:50.9]} 6. c5 {[%clk 0:03:00.4]} 6... Bg4 {[%clk 0:02:45]} 7.
Qb3 {[%clk 0:02:56.5]} 7... Nbd7 {[%clk 0:02:40]} 8. a4 {[%clk 0:02:54.7]} 8...
Bxf3 {[%clk 0:02:34.1]} 9. gxf3 {[%clk 0:02:53.7]} 9... e5 {[%clk 0:02:35]} 10.
axb5 {[%clk 0:02:52.9]} 10... axb5 {[%clk 0:02:34.2]} 11. Rxa8 {[%clk
0:02:51.2]} 11... Qxa8 {[%clk 0:02:33]} 12. Bh3 {[%clk 0:02:51.5]} 12... Be7
{[%clk 0:02:23]} 13. O-O {[%clk 0:02:49.9]} 13... O-O {[%clk 0:02:10.7]} 14. Bd2
{[%clk 0:02:49.4]} 14... Qb7 {[%clk 0:01:59.8]} 15. Ra1 {[%clk 0:02:46.3]} 15...
Ra8 {[%clk 0:01:58.3]} 16. Ra3 {[%clk 0:02:41.3]} 16... Rxa3 {[%clk 0:01:37.4]}
17. Qxa3 {[%clk 0:02:38.1]} 17... b4 {[%clk 0:01:22]} 18. Qb3 {[%clk 0:02:37.9]}
18... exd4 {[%clk 0:01:21.9]} 19. exd4 {[%clk 0:02:35.4]} 19... Bxc5 {[%clk
0:01:21.8]} 20. Nxd5 {[%clk 0:02:14.9]} 20... Nxd5 {[%clk 0:01:18.1]} 21. dxc5
{[%clk 0:02:13.1]} 21... Nxc5 {[%clk 0:01:17.7]} 22. Qc4 {[%clk 0:02:13.3]}
22... Ne6 {[%clk 0:01:17.2]} 23. f4 {[%clk 0:02:09.8]} 23... Qb5 {[%clk
0:01:10.4]} 24. Qxb5 {[%clk 0:02:06.2]} 24... cxb5 {[%clk 0:01:09.9]} 25. f5
{[%clk 0:02:01.1]} 25... Nef4 {[%clk 0:00:59.7]} 26. Bf1 {[%clk 0:01:59.9]}
26... Ne7 {[%clk 0:00:53.9]} 27. Bxf4 {[%clk 0:01:56]} 1-0